bitfinex/quotes_ETHUSD_20250219
["timestamp","ask_amount","ask_price","bid_price","bid_amount"]
[1739977813429,3.71455,2692.2,2692.0,0.327]
[1739977813654,3.71457,2692.1,2692.0,0.327]
[1739977813807,3.71414,2692.5,2692.0,0.327]
[1739977814007,3.71346,2692.9,2691.8,0.7641]
[1739977814267,3.71374,2692.7,2691.9,0.326]
[1739977814407,0.449676,2692.8,2692.0,0.03714345]
[1739977814408,3.71361,2692.8,2692.0,0.03714345]
[1739977814614,0.1496594,2693.1,2692.2,3.71432]
[1739977814980,0.1496594,2693.1,2692.5,0.7889]
[1739977815127,0.1496594,2693.1,2692.6,0.82602881]
[1739977815325,0.1496594,2693.1,2692.7,0.7889]
[1739977815509,0.1496594,2693.1,2693.0,4.50223]
[1739977815710,0.1496594,2693.1,2693.0,5.39735162]
[1739977815937,0.1496594,2693.1,2693.0,5.36022579]
[1739977816139,0.1496594,2693.1,2693.0,1.64689579]
[1739977816340,0.1496594,2693.1,2693.0,1.97389579]
[1739977816522,0.1496594,2693.1,2693.0,1.1159]
[1739977817663,3.71362,2692.8,2692.6,0.7578]
[1739977817862,3.8629094,2693.1,2692.7,0.327]
[1739977818167,7.42711,2692.9,2692.7,0.327]
[1739977818367,3.8629194,2693.1,2692.7,0.327]
[1739977818898,0.1496594,2693.1,2692.8,0.03713571]
[1739977819187,0.1496594,2693.1,2692.8,0.7578]
[1739977819480,0.1496594,2693.1,2692.9,4.951005]
[1739977819680,0.1496594,2693.1,2692.9,1.237645]
[1739977820273,0.1496594,2693.1,2692.9,0.7578]
[1739977820449,0.1496594,2693.1,2693.0,0.327]
[1739977820786,0.1496594,2693.1,2692.9,1.0848]
[1739977820787,3.71333,2693.0,2692.9,1.0848]
[1739977821208,0.1496594,2693.1,2692.9,1.0848]
[1739977821674,0.1496594,2693.1,2692.9,1.82795679]
[1739977821873,0.1496594,2693.1,2693.0,4.30461177]
[1739977822173,0.1496594,2693.1,2693.0,0.55415468]
[1739977823563,3.8628994,2693.1,2692.9,1.82795679]
[1739977823781,0.1496594,2693.1,2692.9,0.74315679]
[1739977823991,3.71333,2693.0,2692.9,0.74315679]
[1739977824167,3.71333,2693.0,2692.9,1.06915679]
[1739977824693,3.71333,2693.0,2692.9,0.326]
[1739977825207,0.1496594,2693.1,2692.9,0.326]
[1739977825509,3.71333,2693.0,2692.9,0.326]
[1739977826812,3.71413,2692.5,2692.2,0.8203]
[1739977826974,3.71333,2693.0,2692.5,0.326]
[1739977826975,3.7134,2693.0,2692.5,0.326]
[1739977827364,3.71355,2692.9,2692.5,0.326]
[1739977827567,3.71386,2692.7,2692.5,0.326]
[1739977827871,3.71384,2692.7,2692.5,0.326]
[1739977828091,3.71335,2693.0,2692.5,0.326]
[1739977828640,3.8628994,2693.1,2692.5,0.326]
[1739977828780,0.1496594,2693.1,2692.6,0.03713463]
[1739977828980,0.1496594,2693.1,2692.7,4.53395]
[1739977829236,0.1496594,2693.1,2692.9,3.71345]
[1739977829437,0.1496594,2693.1,2693.0,4.54263]
[1739977829634,3.71335,2693.0,2692.9,0.327]
[1739977830233,3.71333,2693.0,2692.6,0.8293]
[1739977830389,3.71369,2692.8,2692.6,1.1563]
[1739977830595,3.71374,2692.7,2692.6,0.327]
[1739977831005,3.7135,2692.9,2692.6,0.327]
[1739977831301,3.71374,2692.7,2692.6,0.327]
[1739977831934,3.71336,2693.0,2692.6,0.327]
[1739977832239,3.71374,2692.7,2692.6,0.327]
[1739977832535,0.06324946,2692.9,2692.1,0.7579]
[1739977832734,0.06204537,2692.7,2692.1,0.7579]
[1739977833042,3.71467,2692.1,2691.8,0.327]
[1739977833207,3.1496594,2693.1,2691.9,0.8332]
[1739977833535,3.1496594,2693.1,2691.9,1.05978192]
[1739977833536,0.06085315,2692.0,2691.9,1.05978192]
[1739977833835,0.06116635,2692.0,2691.9,1.35263709]
[1739977834139,3.71465,2692.1,2691.9,1.35263709]
[1739977834290,3.71441,2692.3,2691.9,1.1632]
[1739977834488,0.06031847,2692.0,2691.9,1.1632]
[1739977834726,3.71356,2692.9,2691.9,1.1632]
[1739977835038,3.71382,2692.7,2691.9,1.1632]
[1739977835489,0.05847047,2692.6,2691.9,1.1632]
[1739977835690,3.71409,2692.5,2691.9,1.1632]
[1739977835903,3.77236047,2692.6,2692.2,0.75647479]
[1739977836082,0.05852874,2692.4,2692.2,0.75647479]
[1739977836428,0.05854604,2692.3,2692.2,0.329]
[1739977836632,3.77283604,2692.3,2692.2,0.329]
[1739977836833,3.77283604,2692.3,2691.9,0.8332]
[1739977836834,3.71443,2692.2,2692.1,0.329]
[1739977837032,0.05807493,2692.3,2692.1,0.329]
[1739977837239,3.71508,2691.8,2691.5,9.1633]
[1739977837422,3.71474,2692.0,2691.6,0.329]
[1739977837586,0.05798636,2691.7,2691.6,0.329]
[1739977837787,3.71502,2691.8,2691.6,0.329]
[1739977838023,0.05776567,2691.7,2691.6,0.329]
[1739977838227,3.77288567,2691.7,2691.6,0.329]
[1739977838446,3.71499,2691.8,2691.5,9.11068364]
[1739977838738,0.05722502,2691.7,2691.5,9.43968364]
[1739977839102,3.7148,2692.0,2691.6,0.94396836]
[1739977839286,3.71512,2691.7,2691.6,0.94396836]
[1739977839487,3.71521,2691.7,2691.5,9.11068364]
[1739977839725,0.05722502,2691.7,2691.5,9.11068364]
[1739977840085,3.71519,2691.7,2691.5,9.11068364]
[1739977840289,0.05714001,2691.6,2691.5,9.11068364]
[1739977840516,3.77240001,2691.6,2691.5,9.11068364]
[1739977840928,3.77240001,2691.6,2691.5,0.76168364]
[1739977840929,6.77240001,2691.6,2691.5,0.76168364]
[1739977841150,3.0,2691.4,2690.9,0.328]
[1739977841291,3.71609,2691.0,2690.7,0.7641]
[1739977841498,0.05638109,2691.3,2690.8,0.328]
[1739977841724,0.05569984,2690.9,2690.8,0.328]
[1739977841932,0.7949,2691.7,2690.8,0.328]
[1739977842093,3.77191984,2690.9,2690.8,0.328]
[1739977842292,3.71622,2690.9,2690.8,0.328]
[1739977842540,3.77191984,2690.9,2690.6,0.7316211]
[1739977842746,0.05569984,2690.9,2690.6,0.7316211]
[1739977843101,6.71583,2691.2,2690.6,0.7316211]
[1739977843305,0.055298,2690.8,2690.6,0.7316211]
[1739977843508,0.8104,2692.2,2690.7,0.8158]
[1739977843737,3.71538,2691.6,2690.7,0.8158]
[1739977843902,3.0,2691.5,2690.7,0.8158]
[1739977844117,0.8104,2692.2,2690.8,3.75348555]
[1739977844300,0.7569,2692.8,2691.4,0.7946]
[1739977844497,3.71374,2692.7,2691.5,0.3641469]
[1739977844696,0.7569,2692.8,2691.6,0.7946]
[1739977844896,0.1496594,2693.1,2691.9,3.71477]
[1739977845109,3.0,2693.0,2692.1,0.7946]
[1739977845344,3.84810088,2693.1,2692.1,0.7946]
[1739977845549,3.71356,2692.9,2692.1,0.7946]
[1739977845750,0.13489088,2693.1,2692.1,0.7946]
[1739977845751,3.0,2692.8,2692.1,0.7946]
[1739977845921,3.0,2692.8,2692.2,0.03713826]
[1739977846254,3.71375,2692.7,2692.1,0.7946]
[1739977846398,3.71375,2692.7,2692.2,0.19869008]
[1739977846599,3.71417,2692.4,2692.2,0.19869008]
[1739977846827,3.71417,2692.4,2692.1,0.7946]
[1739977846828,3.71443,2692.2,2692.1,0.327]
[1739977847211,6.76663463,2692.2,2692.1,0.327]
[1739977848405,7.53613463,2692.2,2692.1,0.327]
[1739977849154,3.7151,2691.8,2691.4,1.1508]
[1739977849360,3.0,2691.9,2691.4,1.33866155]
[1739977849652,3.76733829,2691.8,2691.4,0.51386155]
[1739977850150,3.76732829,2691.8,2691.4,0.51386155]
[1739977850651,7.48243829,2691.8,2691.4,0.51386155]
[1739977850851,0.05233829,2691.8,2691.4,0.51386155]
[1739977851193,3.71508,2691.8,2691.4,0.51386155]
[1739977851351,0.05211429,2691.7,2691.4,0.51386155]
[1739977851554,3.0,2692.3,2691.4,0.55101266]
[1739977851869,0.05270157,2692.2,2691.4,0.55101266]
[1739977852067,0.05270157,2692.2,2691.4,0.51386155]
[1739977852068,3.76716157,2692.2,2691.4,0.51386155]
[1739977852570,3.71487,2691.9,2691.4,0.51386155]
[1739977852756,0.05024983,2691.8,2691.4,0.51386155]
[1739977853280,6.71443,2692.2,2691.4,0.51386155]
[1739977853483,0.05010835,2691.7,2691.5,0.8125]
[1739977853688,3.0,2692.2,2691.6,0.03714879]
[1739977853994,0.05066519,2692.1,2691.6,0.03714879]
[1739977854157,0.05066519,2692.1,2691.5,0.8125]
[1739977854488,3.71464,2692.1,2691.5,0.8125]
[1739977854789,3.71448,2692.2,2691.5,0.8125]
[1739977854966,3.71437,2692.3,2691.5,0.8125]
[1739977855168,3.71405,2692.5,2691.5,0.8125]
[1739977855489,0.28445609,2692.5,2691.5,0.8125]
[1739977855787,3.71439,2692.3,2691.5,0.8125]
[1739977856149,3.71404,2692.5,2691.5,0.8125]
[1739977856356,3.71417,2692.4,2691.5,0.8125]
[1739977856558,7.4279,2692.6,2691.8,0.75036192]
[1739977856773,3.71389,2692.6,2691.8,0.75036192]
[1739977856954,3.71411,2692.5,2691.8,0.75036192]
[1739977857153,3.71413,2692.5,2691.8,0.75036192]
[1739977857411,0.7779,2692.9,2691.8,0.75036192]
[1739977857412,3.0,2692.8,2691.8,0.75036192]
[1739977857575,0.05129744,2692.4,2692.2,0.7629]
[1739977857783,0.13489088,2693.1,2692.4,0.7629]
[1739977858092,0.13489088,2693.1,2692.6,4.47666]
[1739977858299,0.13489088,2693.1,2692.6,0.7629]
[1739977858855,0.13489088,2693.1,2692.9,0.75867971]
[1739977860187,0.13489088,2693.1,2692.6,0.7629]
[1739977860575,0.13489088,2693.1,2692.7,0.44768]
[1739977861122,0.13489088,2693.1,2692.2,0.7503]
[1739977861313,0.04637388,2693.0,2692.7,0.7955]
[1739977861460,0.04637388,2693.0,2692.8,0.324]
[1739977862614,3.71346,2692.9,2692.7,1.55358432]
[1739977862795,3.75978388,2693.0,2692.9,0.324]
[1739977863409,0.04637388,2693.0,2692.9,0.324]
[1739977864161,3.75970388,2693.0,2692.7,0.7955]
[1739977864365,3.71384,2692.7,2692.1,0.7594]
[1739977864605,0.04592842,2692.6,2692.4,0.75826951]
[1739977864905,0.04592842,2692.6,2692.5,0.03713822]
[1739977865108,3.84815088,2693.1,2692.5,0.45096877]
[1739977865264,3.71341,2693.0,2692.5,0.03713519]
[1739977865458,3.71341,2693.0,2692.4,0.75826951]
[1739977865459,0.0450138,2693.0,2692.4,0.75826951]
[1739977865675,0.0450138,2693.0,2692.7,0.7986]
[1739977866095,0.13489088,2693.1,2692.7,0.7986]
[1739977866512,0.04488381,2693.0,2692.8,0.322]
[1739977866887,0.13489088,2693.1,2692.8,0.322]
[1739977867083,0.04477245,2692.9,2692.8,0.322]
[1739977867285,0.13489088,2693.1,2692.8,0.322]
[1739977867512,0.04480244,2692.9,2692.8,0.322]
[1739977867733,3.75828244,2692.9,2692.4,0.75826951]
[1739977867945,3.71333,2693.0,2692.5,0.321]
[1739977868124,0.04424146,2692.8,2692.5,0.321]
[1739977868276,0.04429284,2692.9,2692.5,0.321]
[1739977868481,3.71362,2692.8,2692.5,0.321]
[1739977868698,0.04418148,2692.8,2692.5,0.321]
[1739977868881,0.13489088,2693.1,2692.5,0.321]
[1739977869322,0.0444042,2693.0,2692.5,0.321]
[1739977870339,0.0444042,2693.0,2692.6,0.321]
[1739977870516,0.0444042,2693.0,2692.6,0.80033595]
[1739977870843,0.0444042,2693.0,2692.6,0.321]
[1739977871126,3.71346,2692.9,2692.7,0.32]
[1739977871328,3.71401,2692.6,2692.3,0.7652]
[1739977871495,3.71401,2692.6,2692.5,0.32]
[1739977871895,3.71362,2692.8,2692.5,0.32]
[1739977872099,0.04365389,2692.6,2692.5,0.32]
[1739977872315,3.71381,2692.7,2692.5,0.32]
[1739977872515,3.75753389,2692.6,2692.5,0.32]
[1739977872832,0.04365389,2692.6,2692.5,0.32]
[1739977873013,3.71343,2693.0,2692.5,0.32]
[1739977873219,0.04365389,2692.6,2692.5,0.32]
[1739977873385,3.71363,2692.8,2692.5,0.32]
[1739977873587,0.04376527,2692.7,2692.5,0.32]
[1739977873786,3.13489088,2693.1,2692.5,0.79871698]
[1739977874004,3.75719923,2693.0,2692.5,0.79871698]
[1739977874448,0.04378923,2693.0,2692.5,0.32]
[1739977874723,0.04378923,2693.0,2692.6,0.8333]
[1739977875080,3.75711923,2693.0,2692.6,0.8333]
[1739977875281,0.04378923,2693.0,2692.6,0.8333]
[1739977875883,3.75718923,2693.0,2692.6,0.8333]
[1739977876084,0.04378923,2693.0,2692.6,0.8333]
[1739977876508,3.75719923,2693.0,2692.6,0.8333]
[1739977876712,3.75719923,2693.0,2692.5,0.32]
[1739977876713,3.71359,2692.9,2692.5,0.32]
[1739977876905,3.75712923,2693.0,2692.5,0.32]
[1739977876906,3.71369,2692.8,2692.6,0.755395]
[1739977877106,0.04084964,2692.8,2692.7,0.319]
[1739977877313,7.42687,2693.0,2692.7,0.319]
[1739977877508,3.71421,2692.4,2692.0,0.7846]
[1739977877733,3.71402,2692.5,2691.5,0.7846]
[1739977877937,0.04011312,2692.3,2692.0,0.319]
[1739977878136,3.03994632,2692.4,2692.0,0.319]
[1739977878339,0.03969345,2692.2,2692.0,0.319]
[1739977878538,6.71407,2692.5,2692.0,0.319]
[1739977878744,0.04262678,2692.1,2692.0,0.319]
[1739977878902,4.46968,2692.9,2692.0,4.03362]
[1739977879098,4.46968,2692.9,2692.1,1.2668064]
[1739977879099,3.71368,2692.8,2692.1,1.2668064]
[1739977879359,3.75680929,2692.8,2692.1,1.2668064]
[1739977879504,6.71381,2692.7,2692.1,1.2668064]
[1739977879700,0.04300931,2692.7,2692.1,1.2668064]
[1739977879951,3.71388,2692.6,2692.2,0.318]
[1739977880118,3.71396,2692.6,2692.2,0.318]
[1739977880311,3.71415,2692.4,2692.2,0.318]
[1739977880515,0.04280163,2692.5,2692.2,0.318]
[1739977880817,0.7562,2692.9,2692.2,0.318]
[1739977881013,3.0,2692.7,2692.2,0.318]
[1739977881236,3.71437,2692.3,2691.9,0.75130014]
[1739977881417,3.71437,2692.3,2692.2,0.318]
[1739977881614,3.71437,2692.3,2691.8,0.7846]
[1739977881615,3.0,2692.2,2691.8,0.7846]
[1739977881828,3.0,2692.2,2691.4,0.18786155]
[1739977881829,3.71473,2692.0,2691.5,1.0983]
[1739977882045,0.84814188,2692.1,2691.5,0.96341616]
[1739977882350,0.0415144,2691.9,2691.8,0.74854731]
[1739977882504,0.04113278,2692.0,2691.8,0.74854731]
[1739977882705,0.04091575,2691.9,2691.8,0.74854731]
[1739977883031,3.71458,2692.1,2691.8,0.74854731]
[1739977883236,0.04103582,2692.0,2691.8,0.74854731]
[1739977883398,0.04103582,2692.0,2691.7,0.317]
[1739977884221,3.71498,2691.8,2691.7,0.317]
[1739977884406,0.04079568,2691.8,2691.7,1.07276419]
[1739977884606,3.71475,2692.0,2691.7,1.07276419]
[1739977884903,0.0409804,2691.9,2691.7,1.07276419]
[1739977886130,0.8063,2692.4,2691.7,1.07276419]
[1739977886331,0.040828,2691.8,2691.7,1.07276419]
[1739977886537,3.71486,2691.9,2691.7,1.07276419]
[1739977886756,0.04079568,2691.8,2691.7,1.07276419]
[1739977886936,3.75577568,2691.8,2691.7,0.75576419]
[1739977887270,3.71533,2691.6,2691.5,0.316]
[1739977887625,3.7558288,2691.6,2691.5,0.316]
[1739977887824,0.0404988,2691.6,2691.5,0.316]
[1739977888022,3.0,2692.2,2691.5,1.25586128]
[1739977888270,0.0409965,2692.1,2691.7,3.71502]
[1739977888581,3.71423,2692.4,2691.8,0.8111]
[1739977888871,0.7965,2692.8,2691.8,0.8111]
[1739977889170,3.71459,2692.1,2691.8,0.8111]
[1739977889381,3.71471,2692.0,2691.9,0.315]
[1739977889545,3.75507989,2692.0,2691.9,0.315]
[1739977889873,0.04036989,2692.0,2691.9,0.315]
[1739977890075,3.75507989,2692.0,2691.9,0.315]
[1739977890824,0.04036989,2692.0,2691.9,0.315]
[1739977891143,3.71471,2692.0,2691.9,0.315]
[1739977891326,3.75507989,2692.0,2691.9,0.315]
[1739977892432,3.71514,2691.7,2691.5,1.75936128]
[1739977892673,3.71514,2691.7,2691.6,0.314]
[1739977893073,3.71514,2691.7,2691.6,1.06070734]
[1739977893413,3.71514,2691.7,2691.6,0.314]
[1739977893567,3.715,2691.8,2691.6,0.314]
[1739977893774,3.71488,2691.9,2691.6,0.314]
[1739977894079,3.0,2692.0,2691.6,0.314]
[1739977894280,0.03967372,2691.8,2691.6,0.314]
[1739977894606,5.38,2692.3,2691.7,0.03714897]
[1739977894793,3.71439,2692.3,2691.6,0.314]
[1739977894994,3.71467,2692.1,2691.6,1.32880918]
[1739977895295,3.71478,2692.0,2691.6,1.32880918]
[1739977895607,7.24385853,2692.6,2691.7,0.7525]
[1739977895778,0.18742104,2694.1,2691.7,0.7525]
[1739977895779,0.13489088,2693.1,2692.9,0.1]
[1739977896108,4.24385853,2694.3,2693.1,0.7525]
[1739977896316,4.24385853,2693.9,2693.3,0.75623185]
[1739977896499,3.71305,2693.2,2693.1,0.322]
[1739977896702,4.24385853,2693.9,2693.1,0.322]
[1739977896871,3.71223,2693.8,2693.1,0.322]
[1739977897069,0.81,2694.0,2693.1,0.322]
[1739977897314,4.24385853,2694.2,2693.2,1.25057142]
[1739977897522,4.24385853,2694.2,2693.1,0.322]
[1739977897523,3.71262,2693.6,2693.1,0.322]
[1739977898010,3.7128,2693.4,2693.1,0.322]
[1739977898509,3.71209,2693.9,2693.1,0.322]
[1739977898709,3.0,2694.1,2693.1,0.322]
[1739977899019,3.71246,2693.7,2693.1,0.322]
[1739977899317,0.7854,2694.2,2693.1,0.322]
[1739977899514,4.24385853,2693.9,2693.1,0.322]
[1739977899719,3.71284,2693.4,2693.1,0.322]
[1739977899920,3.71291,2693.3,2692.9,1.08340791]
[1739977900086,8.74191853,2693.5,2692.9,0.321]
[1739977900289,3.71319,2693.1,2692.9,0.321]
[1739977901201,3.71356,2692.9,2692.2,0.8007]
[1739977901428,3.71361,2692.8,2692.3,0.321]
[1739977901804,5.751319,2693.1,2692.4,0.75426785]
[1739977902127,5.38,2693.1,2692.4,0.75426785]
[1739977902431,3.71342,2693.0,2692.4,0.75426785]
[1739977902625,5.38,2693.1,2692.4,0.75426785]
[1739977902855,5.38,2693.1,2692.5,0.7775]
[1739977903191,9.09319,2693.1,2692.5,0.7775]
[1739977903393,3.71348,2692.9,2692.5,0.7775]
[1739977903699,3.71361,2692.8,2692.6,0.322]
[1739977903898,3.71348,2692.9,2692.6,0.322]
[1739977904613,3.71361,2692.8,2692.6,0.322]
[1739977904799,3.71374,2692.7,2692.6,0.322]
[1739977905330,3.71348,2692.9,2692.6,0.322]
[1739977905624,0.7743,2693.0,2692.6,0.322]
[1739977905825,3.71355,2692.9,2692.6,0.322]
[1739977906033,0.7743,2693.0,2692.6,0.322]
[1739977906230,5.38,2693.1,2692.7,0.7903]
[1739977906389,3.71313,2693.2,2692.7,0.7903]
[1739977907132,3.0,2693.1,2692.7,0.7903]
[1739977907823,0.42438585,2693.8,2692.8,0.0371352]
[1739977908016,3.71237,2693.7,2692.8,3.71359]
[1739977908390,3.71255,2693.6,2692.7,0.7903]
[1739977908934,5.38,2693.9,2693.1,0.7738]
[1739977909134,5.38,2693.9,2693.4,0.7738]
[1739977909334,3.71167,2694.2,2693.5,0.321]
[1739977909490,3.71183,2694.1,2693.5,0.321]
[1739977909691,5.38,2694.4,2693.5,0.321]
[1739977909992,9.09148,2694.4,2693.8,0.72618236]
[1739977910221,3.71162,2694.3,2693.8,0.72618236]
[1739977910621,3.71188,2694.1,2693.8,0.72618236]
[1739977910797,5.38,2694.4,2693.8,0.72618236]
[1739977910997,3.7117,2694.2,2693.8,0.72618236]
[1739977911195,12.80295,2694.4,2693.8,0.72618236]
[1739977911550,5.38,2694.4,2693.8,0.72618236]
[1739977911834,3.71156,2694.3,2693.8,0.72618236]
[1739977912136,3.71182,2694.1,2693.8,0.72618236]
[1739977912341,7.42323,2694.3,2693.8,0.72618236]
[1739977912506,3.71169,2694.2,2693.8,0.72618236]
[1739977912706,3.71193,2694.1,2693.8,0.72618236]
[1739977913220,3.71196,2694.0,2693.8,0.72618236]
[1739977913622,7.42401,2694.0,2693.8,0.72618236]
[1739977913827,3.71196,2694.0,2693.8,0.72618236]
[1739977914153,9.62385853,2694.4,2693.4,0.7738]
[1739977914350,3.71218,2693.9,2693.8,0.319]
[1739977914860,9.0914,2694.4,2693.8,0.319]
[1739977915232,3.71158,2694.3,2693.8,0.319]
[1739977915438,3.71175,2694.2,2693.8,0.319]
[1739977915623,3.71158,2694.3,2693.8,0.319]
[1739977915624,3.71161,2694.3,2693.8,0.319]
[1739977916111,3.71169,2694.2,2693.8,0.319]
[1739977916827,3.71189,2694.1,2693.8,0.319]
[1739977918009,7.4238,2694.1,2693.8,0.319]
[1739977918320,3.71189,2694.1,2693.8,0.319]
[1739977918742,3.71181,2694.1,2693.8,0.319]
[1739977918947,3.712,2694.0,2693.8,0.319]
[1739977919855,4.24385853,2694.6,2693.8,0.319]
[1739977920059,3.71209,2693.9,2693.8,0.319]
[1739977920412,3.71236,2693.7,2693.6,1.0440008]
[1739977920724,3.71236,2693.7,2693.6,0.317]
[1739977921124,7.95583853,2694.0,2693.3,0.317]
[1739977921125,3.71209,2693.9,2693.3,0.317]
[1739977921342,3.71305,2693.2,2693.1,0.317]
[1739977921808,3.7132,2693.1,2692.9,4.42765492]
[1739977922038,3.71299,2693.3,2692.9,4.42765492]
[1739977922356,3.71332,2693.1,2692.9,4.42765492]
[1739977922510,3.71333,2693.0,2692.9,4.42765492]
[1739977922946,3.71332,2693.1,2692.9,4.42765492]
[1739977923241,3.71293,2693.3,2692.9,4.42765492]
[1739977923242,3.71307,2693.2,2692.9,4.42765492]
[1739977923445,3.71333,2693.0,2692.9,4.42765492]
[1739977924407,3.71361,2692.8,2692.2,0.8308]
[1739977924551,3.71467,2692.1,2691.5,5.36]
[1739977924751,7.95816853,2692.3,2691.5,5.678]
[1739977924952,3.71431,2692.3,2691.6,0.7869]
[1739977925178,3.71431,2692.3,2691.9,0.74480233]
[1739977925499,4.24385853,2692.6,2691.6,0.7869]
[1739977925651,3.7148,2692.0,2691.6,0.7869]
[1739977925963,3.71445,2692.2,2691.8,0.73565132]
[1739977926163,3.71471,2692.0,2691.8,0.73565132]
[1739977926365,3.71485,2691.9,2691.8,0.318]
[1739977926562,3.71451,2692.2,2691.8,0.318]
[1739977926773,3.71458,2692.1,2691.8,0.318]
[1739977927000,3.71423,2692.4,2691.8,0.318]
[1739977927152,3.71423,2692.4,2691.8,0.50390021]
[1739977927153,3.71446,2692.2,2691.8,0.50390021]
[1739977927352,3.71481,2692.0,2691.8,0.50390021]
[1739977927594,3.71498,2691.8,2691.7,0.75410213]
[1739977927811,3.71498,2691.8,2691.7,1.07110213]
[1739977928306,3.71479,2692.0,2691.7,1.07110213]
[1739977928463,7.42903,2692.2,2691.7,1.07110213]
[1739977928666,3.71457,2692.1,2691.7,1.07110213]
[1739977928967,9.66490838,2692.7,2691.7,1.07110213]
[1739977928968,5.07245853,2692.7,2691.7,1.07110213]
[1739977929167,5.07245853,2692.7,2691.9,0.7649]
[1739977929168,3.71454,2692.2,2691.9,0.7649]
[1739977929512,3.71458,2692.1,2692.0,0.318]
[1739977929892,3.71435,2692.3,2692.0,0.318]
[1739977929893,4.51783061,2693.0,2692.0,0.318]
[1739977930073,3.71341,2693.0,2692.2,0.8059]
[1739977930294,3.71341,2693.0,2692.2,6.1659]
[1739977930479,3.71361,2692.8,2692.2,6.1659]
[1739977930680,3.71375,2692.7,2692.2,6.1659]
[1739977930923,4.24385853,2692.3,2692.0,0.74197519]
[1739977931126,4.24385853,2692.3,2691.7,0.318]
[1739977931127,3.7148,2692.0,2691.7,0.318]
[1739977931334,3.71443,2692.2,2691.6,0.73654411]
[1739977931636,3.71589,2691.2,2691.0,0.7613]
[1739977931777,3.71589,2691.2,2690.8,0.319]
[1739977931982,3.7161,2691.0,2690.8,0.319]
[1739977932403,3.71622,2690.9,2690.4,5.36]
[1739977932607,3.71664,2690.6,2690.5,0.319]
[1739977932804,3.71608,2691.1,2690.5,0.319]
[1739977933006,7.43215,2691.1,2690.5,0.319]
[1739977933209,3.71606,2691.1,2690.5,1.06708364]
[1739977933388,3.7161,2691.0,2690.5,1.06708364]
[1739977933783,3.71624,2690.9,2690.5,1.06708364]
[1739977934231,7.43258,2690.9,2690.5,1.06708364]
[1739977934407,3.71624,2690.9,2690.5,1.06708364]
[1739977935102,3.71646,2690.8,2690.5,1.06708364]
[1739977935297,3.71624,2690.9,2690.5,1.06708364]
[1739977936531,3.71602,2691.1,2690.5,1.06708364]
[1739977936835,9.09559,2691.4,2690.6,0.0371656]
[1739977936986,9.09559,2691.4,2690.5,1.06708364]
[1739977937188,5.38,2691.4,2690.6,0.51555184]
[1739977937582,3.71578,2691.3,2690.7,0.7562]
[1739977937824,3.71589,2691.2,2690.7,0.7562]
[1739977938030,3.71595,2691.1,2690.7,0.7562]
[1739977938227,7.43158,2691.3,2690.7,0.7562]
[1739977938529,3.71582,2691.2,2690.7,0.7562]
[1739977938883,5.38,2691.4,2690.7,0.7562]
[1739977939327,3.71604,2691.1,2690.7,0.7562]
[1739977939626,3.71594,2691.2,2690.7,0.7562]
[1739977940039,5.38,2691.4,2690.7,0.7562]
[1739977940341,3.71595,2691.1,2690.7,0.7562]
[1739977940488,9.0956,2691.4,2690.7,0.7562]
[1739977940949,9.0956,2691.4,2690.7,0.79336049]
[1739977941098,9.09561,2691.4,2690.7,0.7562]
[1739977941428,12.81123,2691.4,2690.7,0.7562]
[1739977941633,9.09561,2691.4,2690.8,0.447282]
[1739977941837,5.38,2691.4,2690.8,0.447282]
[1739977942189,3.7154,2691.5,2690.8,0.447282]
[1739977942585,5.38,2691.7,2690.9,0.03716034]
[1739977942810,3.71556,2691.4,2691.2,0.75948989]
[1739977943220,7.22197839,2691.3,2691.2,0.75948989]
[1739977943422,3.71589,2691.2,2690.7,0.7562]
[1739977943590,3.71596,2691.1,2690.7,0.7562]
[1739977943937,7.22197839,2691.3,2690.9,0.75822433]
[1739977944320,3.71593,2691.2,2690.9,0.75822433]
[1739977945141,3.71589,2691.2,2690.9,0.75822433]
[1739977945587,7.22166839,2691.6,2690.9,0.75822433]
[1739977945786,3.71542,2691.5,2690.9,0.75822433]
[1739977946040,8.88630839,2691.7,2690.9,0.75822433]
[1739977946234,3.71537,2691.6,2690.9,0.75822433]
[1739977946389,3.71537,2691.6,2691.0,0.44744643]
[1739977946585,3.71554,2691.4,2690.9,0.75822433]
[1739977946988,7.4307,2691.6,2690.9,0.75822433]
[1739977947198,3.71535,2691.6,2690.9,4.47443433]
[1739977947746,3.7156,2691.4,2690.9,0.75822433]
[1739977947941,3.71526,2691.6,2690.9,0.75822433]
[1739977948150,0.7927,2692.3,2691.5,3.71539]
[1739977948296,0.18754741,2692.7,2691.9,0.7745]
[1739977948487,3.50630839,2692.8,2691.9,0.7745]
[1739977948692,8.88630839,2693.0,2692.1,3.71457]
[1739977948905,3.71347,2692.9,2692.2,0.37517136]
[1739977949126,3.50630839,2692.7,2692.0,5.36]
[1739977949309,3.71457,2692.1,2692.0,5.36]
[1739977949538,3.71457,2692.1,2692.0,1.04768416]
[1739977949748,3.71471,2692.0,2690.9,0.7745]
[1739977949956,3.71519,2691.7,2691.0,0.315]
[1739977950169,3.50630839,2691.8,2690.9,0.7745]
[1739977950462,3.71595,2691.1,2690.9,0.7745]
[1739977950659,3.71595,2691.1,2690.2,13.706]
[1739977950818,3.71595,2691.1,2691.0,0.74690309]
[1739977951214,3.7159,2691.2,2690.3,0.7948]
[1739977951215,3.71645,2690.8,2690.3,0.7948]
[1739977951524,3.71661,2690.7,2690.5,0.75256088]
[1739977951861,3.71661,2690.7,2690.4,0.315]
[1739977952414,8.38,2691.1,2690.4,1.26058]
[1739977952415,3.0,2691.0,2690.4,1.26058]
[1739977952619,5.38,2691.1,2690.4,2.00718531]